bitfinex-derivatives/quotes_SOLF0:USTF0_20250228
["timestamp","ask_amount","ask_price","bid_price","bid_amount"]
[1740754657655,34.58,144.61,144.54,81.5042927]
[1740754657856,34.58,144.59,144.54,81.45817115]
[1740754658050,34.58,144.6,144.54,81.45817115]
[1740754658252,34.58,144.59,144.54,81.45817115]
[1740754658455,34.58,144.57,144.54,81.45817115]
[1740754658654,34.58,144.57,144.55,0.05004256]
[1740754658857,0.04745374,144.58,144.55,0.05004256]
[1740754659057,34.58,144.57,144.55,0.05004256]
[1740754659257,23.60059584,144.58,144.55,0.05004256]
[1740754659458,34.58,144.56,144.55,0.05004256]
[1740754659660,34.58,144.56,144.5,221.34]
[1740754659853,34.58,144.52,144.49,90.97845289]
[1740754660059,6.9227,144.55,144.49,9.52028174]
[1740754660361,34.58,144.51,144.47,41.62482696]
[1740754660861,34.58,144.49,144.48,0.04648337]
[1740754661061,0.04787036,144.5,144.48,0.04648337]
[1740754661254,34.58,144.49,144.48,0.04648337]
[1740754661455,34.58,144.49,144.47,38.08112696]
[1740754661658,34.58,144.48,144.47,32.41292696]
[1740754662165,3.46,144.48,144.46,76.16225393]
[1740754662461,25.72021514,144.47,144.46,76.16225393]
[1740754662766,6.9265,144.47,144.46,24.77233687]
[1740754662958,10.3865,144.47,144.46,24.77233687]
[1740754663555,10.3865,144.47,144.46,14.17453687]
[1740754663757,6.9307,144.39,144.36,76.03143697]
[1740754664061,20.86,144.39,144.36,76.03143697]
[1740754664656,221.5,144.52,144.36,101.75165211]
[1740754664861,0.05243921,144.39,144.37,25.72021514]
[1740754665056,20.84,144.44,144.37,25.72021514]
[1740754665257,20.84,144.44,144.37,0.04500534]
[1740754665762,0.05244449,144.42,144.37,0.04500534]
[1740754668566,0.05244449,144.42,144.38,25.72021514]
[1740754669071,0.05244449,144.42,144.37,0.04500534]
[1740754669766,0.05244449,144.42,144.37,25.76522048]
[1740754669971,0.05244449,144.42,144.41,25.72021514]
[1740754670168,20.86,144.49,144.41,25.72021514]
[1740754670373,20.86,144.49,144.42,25.72021514]
[1740754670674,20.86,144.49,144.44,25.72021514]
[1740754670966,20.86,144.49,144.41,25.72021514]
[1740754671274,0.04803524,144.46,144.44,0.05230402]
[1740754671575,0.04803524,144.46,144.39,25.72021514]
[1740754671773,0.04803524,144.46,144.44,0.05022359]
[1740754672068,0.04803524,144.46,144.36,221.66]
[1740754672267,0.04803524,144.46,144.44,0.05049807]
[1740754672471,0.04639859,144.46,144.44,3.054e-05]
[1740754672675,6.929,144.42,144.29,221.68]
[1740754672870,20.84,144.41,144.35,25.72021514]
[1740754673070,20.84,144.4,144.33,25.72021514]
[1740754673475,20.84,144.4,144.33,39.56021514]
[1740754673672,0.0457353,144.38,144.35,25.76931225]
[1740754674070,0.0457353,144.38,144.35,0.04909711]
[1740754674866,0.0457353,144.38,144.36,25.72021514]
[1740754675074,0.0457353,144.38,144.35,0.04909711]
[1740754676973,0.0457353,144.38,144.35,25.76931225]
[1740754677277,0.0457353,144.38,144.36,25.72021514]
[1740754677470,0.0457353,144.38,144.37,25.72021514]
[1740754678074,0.0457353,144.38,144.35,0.04909711]
[1740754679077,6.9318,144.36,144.35,0.04909711]
[1740754680180,6.9315,144.37,144.35,0.04909711]
[1740754680375,0.0457353,144.38,144.35,0.04909711]
[1740754680576,0.0457353,144.38,144.35,25.76931225]
[1740754680773,0.0457353,144.38,144.37,25.72021514]
[1740754681377,0.0457353,144.38,144.35,0.04909711]
[1740754681577,0.0457353,144.38,144.37,25.72021514]
[1740754682080,20.82,144.45,144.37,25.72021514]
[1740754682279,27.7475,144.45,144.31,221.78]
[1740754682480,20.82,144.45,144.37,25.72021514]
[1740754682977,20.82,144.45,144.37,39.56021514]
[1740754683179,0.04383136,144.42,144.4,0.04861947]
[1740754683971,221.78,144.57,144.41,25.72021514]
[1740754684180,23.40131333,144.56,144.41,25.72021514]
[1740754684378,1.38350857,144.56,144.31,221.78]
[1740754684578,6.925,144.51,144.44,25.72021514]
[1740754684775,20.82,144.55,144.36,20.82]
[1740754684975,20.82,144.55,144.37,10.3942]
[1740754685182,20.82,144.55,144.49,25.72021514]
[1740754685375,20.82,144.55,144.52,25.72021514]
[1740754685573,20.82,144.55,144.51,25.72021514]
[1740754685776,20.86772652,144.55,144.52,0.05022636]
[1740754687180,0.04772652,144.55,144.52,0.05022636]
[1740754687381,0.04772652,144.55,144.54,25.72021514]
[1740754687584,20.82,144.62,144.52,0.05022636]
[1740754687784,1.19660107,144.61,144.47,3.4635]
[1740754687981,20.82,144.62,144.49,25.72021514]
[1740754688181,20.82,144.62,144.47,17.3035]
[1740754688382,1.19669776,144.61,144.49,25.72021514]
[1740754688584,0.0498845,144.57,144.54,0.04517951]
[1740754688784,1.19669776,144.61,144.48,25.72021514]
[1740754688979,0.04658602,144.57,144.54,0.0523825]
[1740754689784,6.9227,144.55,144.54,0.0523825]
[1740754689981,27.7227,144.55,144.54,0.0523825]
[1740754690382,27.7227,144.55,144.54,8.25e-05]
[1740754690589,6.9279,144.45,144.33,298.08529559]
[1740754690783,20.8,144.46,144.4,25.72021514]
[1740754690990,20.8,144.45,144.38,25.72021514]
[1740754691190,20.8,144.45,144.39,25.72021514]
[1740754691386,20.8,144.45,144.42,25.72021514]
[1740754691889,20.84377125,144.45,144.44,25.72021514]
[1740754692090,20.84377125,144.45,144.42,0.04717331]
[1740754692286,27.77137125,144.45,144.42,0.04717331]
[1740754692487,20.84377125,144.45,144.42,0.04717331]
[1740754692885,6.9284,144.43,144.42,0.04717331]
[1740754693089,6.9284,144.43,144.42,7.331e-05]
[1740754693392,10.3884,144.43,144.42,7.331e-05]
[1740754693789,6.9323,144.35,144.32,28.71439429]
[1740754694094,20.8,144.34,144.32,28.71439429]
[1740754694496,6.9332,144.33,144.32,28.71439429]
[1740754694890,10.3932,144.33,144.32,17.12829429]
[1740754695096,6.9337,144.32,144.31,64.00321763]
[1740754696096,6.9337,144.32,144.31,0.04543488]
[1740754696298,20.85057112,144.34,144.31,0.04543488]
[1740754696498,20.8,144.33,144.31,0.04543488]
[1740754697999,20.8,144.33,144.31,25.76565002]
[1740754698392,0.05057112,144.34,144.32,25.72021514]
[1740754698598,0.05057112,144.34,144.33,25.72021514]
[1740754698794,0.05057112,144.34,144.32,25.72021514]
[1740754699198,0.05057112,144.34,144.33,25.72021514]
[1740754699690,0.05057112,144.34,144.33,39.56037095]
[1740754700091,20.8,144.38,144.33,25.72021514]
[1740754700294,221.72,144.46,144.37,25.72021514]
[1740754700492,20.8,144.45,144.26,105.87637115]
[1740754700691,6.9289,144.42,144.35,25.72021514]
[1740754700990,20.8,144.45,144.35,39.56037095]
[1740754701190,20.8,144.45,144.26,105.87637115]
[1740754701191,6.9302,144.4,144.29,6.9348]
[1740754701394,6.9302,144.4,144.35,25.72021514]
[1740754701592,0.05001454,144.36,144.33,25.72021514]
[1740754701802,20.78,144.37,144.33,25.77013444]
[1740754701999,0.05112321,144.36,144.33,39.56037095]
[1740754702198,0.05112321,144.36,144.34,0.04523659]
[1740754702399,20.78,144.37,144.31,25.72021514]
[1740754702592,0.04998798,144.36,144.34,25.77050392]
[1740754702792,20.78,144.37,144.35,2.49636452]
[1740754702998,58.93914479,144.43,144.36,2.49636452]
[1740754703192,38.15914479,144.43,144.27,102.23817115]
[1740754703397,38.15914479,144.43,144.39,2.49636452]
[1740754703897,38.15914479,144.43,144.4,2.49636452]
[1740754704094,38.20380664,144.43,144.4,2.54851428]
[1740754704495,38.20380664,144.43,144.4,13.89230557]
[1740754704694,38.20380664,144.43,144.42,2.49636452]
[1740754704894,26.86460664,144.43,144.42,2.49636452]
[1740754705097,21.19530664,144.43,144.42,2.49636452]
[1740754705396,76.33969868,144.44,144.42,2.49636452]
[1740754705603,76.33969868,144.44,144.43,2.49636452]
[1740754706000,76.33969868,144.44,144.43,16.33652033]
[1740754706203,76.33969868,144.44,144.4,0.05214976]
[1740754706402,76.33969868,144.44,144.41,2.49636452]
[1740754706598,0.05063453,144.43,144.41,2.49636452]
[1740754706900,0.05063453,144.43,144.42,2.49636452]
[1740754707104,0.05063453,144.43,144.4,0.05214976]
[1740754707403,20.78,144.42,144.4,0.05214976]
[1740754708599,0.05063453,144.43,144.41,2.49636452]
[1740754708795,131.7641104,144.51,144.42,2.49636452]
[1740754708995,131.7641104,144.51,144.48,2.49636452]
[1740754709205,24.4304,144.53,144.47,2.49636452]
[1740754709705,24.4304,144.53,144.48,2.49636452]
[1740754709901,6.97752439,144.51,144.49,0.05050182]
[1740754710102,0.05282439,144.51,144.49,0.05050182]
[1740754710503,0.05282439,144.51,144.39,3.6444]
[1740754710705,1.19759675,144.51,144.43,2.49636452]
[1740754710902,24.4304,144.53,144.44,2.49636452]
[1740754711504,24.4304,144.53,144.39,3.6444]
[1740754711700,0.04901426,144.49,144.47,0.04785381]
[1740754711895,0.04901426,144.49,144.42,2.49636452]
[1740754712098,3.50901426,144.49,144.33,3.6444]
[1740754712302,1.19764653,144.48,144.39,2.49636452]
[1740754712502,3.6126,144.47,144.39,2.49636452]
[1740754712707,21.95818198,144.46,144.33,3.6444]
[1740754712901,1.19818198,144.45,144.37,2.49636452]
[1740754713097,1.19818198,144.45,144.4,0.05261982]
[1740754713408,0.04527943,144.42,144.4,2.54898434]
[1740754713606,0.04527943,144.42,144.41,2.49636452]
[1740754714199,20.76,144.46,144.41,2.49636452]
[1740754714404,20.76,144.46,144.43,2.49636452]
[1740754714604,20.76,144.46,144.33,3.6444]
[1740754714905,1.1981339,144.45,144.37,2.49636452]
[1740754715407,0.04829668,144.42,144.4,0.04426954]
[1740754716104,0.04829668,144.42,144.26,1.367]
[1740754716303,7.0257,144.43,144.34,2.49636452]
[1740754716509,6.9314,144.37,144.35,2.49636452]
[1740754717206,6.98041944,144.37,144.35,2.54503032]
[1740754717402,0.04901944,144.37,144.35,2.54503032]
[1740754717708,0.04901944,144.37,144.36,2.49636452]
[1740754718509,0.04901944,144.37,144.36,16.33652033]
[1740754718906,0.04901944,144.37,144.35,0.0486658]
[1740754719106,6.9318,144.36,144.35,0.0486658]
[1740754719704,0.04901944,144.37,144.24,221.78]
[1740754719901,1.19863307,144.38,144.3,2.49636452]
[1740754720207,1.19863307,144.38,144.29,2.49636452]
[1740754720208,6.9336,144.33,144.29,2.49636452]
[1740754720409,20.74,144.39,144.29,2.49636452]
[1740754720608,1.19886642,144.38,144.29,16.33652033]
[1740754720810,6.9333,144.33,144.29,16.33652033]
[1740754721011,6.9333,144.33,144.32,0.04619075]
[1740754721609,0.05209373,144.35,144.32,0.04619075]
[1740754722013,6.9328,144.34,144.32,0.04619075]
[1740754722513,6.9332,144.33,144.32,0.04619075]
[1740754723010,0.05209373,144.35,144.21,1.4732]
[1740754723214,3.5558,144.34,144.26,2.49636452]
[1740754723512,3.5558,144.34,144.27,2.49636452]
[1740754723708,1.38523341,144.38,144.3,2.49636452]
[1740754723912,4.90457618,144.37,144.29,2.49636452]
[1740754724113,11.83617618,144.37,144.31,2.49636452]
[1740754724309,0.04739339,144.34,144.32,0.04823473]
[1740754724514,3.7057,144.37,144.3,2.49636452]
[1740754724815,0.04728285,144.34,144.32,0.04844279]
[1740754725012,1.19884108,144.36,144.29,2.49636452]
[1740754725209,0.04668072,144.29,144.28,2.49636452]
[1740754725413,1.19884108,144.36,144.28,2.49636452]
[1740754725713,6.9333,144.33,144.22,6.9385]
[1740754725912,20.72,144.32,144.31,0.05247656]
[1740754726110,20.72,144.32,144.28,2.49636452]
[1740754726111,20.72,144.32,144.3,0.05013569]
[1740754727306,0.04975797,144.33,144.3,0.05013569]
[1740754727514,0.04975797,144.33,144.32,2.49636452]
[1740754727815,0.04975797,144.33,144.3,0.05013569]
[1740754729307,0.04975797,144.33,144.32,2.49636452]
[1740754729516,0.04975797,144.33,144.3,0.05013569]
[1740754731420,6.98315797,144.33,144.3,0.05013569]
[1740754731723,0.04975797,144.33,144.3,0.05013569]
[1740754732125,0.04975797,144.33,144.31,2.49636452]
[1740754732719,0.04975797,144.33,144.3,0.05013569]
[1740754732720,0.04975797,144.33,144.32,2.49636452]
[1740754733326,0.04975797,144.33,144.32,13.84015581]
[1740754733524,0.04975797,144.33,144.3,0.05013569]
[1740754733725,0.04975797,144.33,144.31,2.49636452]
[1740754733923,0.04975797,144.33,144.3,0.05013569]
[1740754734125,6.934,144.32,144.3,0.05013569]
[1740754734425,0.04975797,144.33,144.3,0.05013569]
[1740754734627,6.9342,144.31,144.3,0.05013569]
[1740754735427,24.3726,144.32,144.19,221.82]
[1740754735723,27.9247,144.32,144.25,2.49636452]
[1740754736119,27.9247,144.32,144.19,221.82]
[1740754736320,27.9247,144.32,144.25,2.49636452]
[1740754736517,0.04674072,144.27,144.24,0.05211389]
[1740754736718,27.9247,144.32,144.24,2.54589639]
[1740754737024,0.04637832,144.27,144.24,16.3860522]
[1740754737627,0.04637832,144.27,144.24,0.04953187]
[1740754738024,0.04637832,144.27,144.15,3.7869]
[1740754738224,1.19955476,144.3,144.19,2.49636452]
[1740754738419,1.19955476,144.3,144.15,17.37585581]
[1740754738623,223.32609744,144.29,144.03,38.12529007]
[1740754738823,223.32609744,144.29,144.08,0.2512]
[1740754738824,2.58574827,144.28,144.08,0.2512]
[1740754739026,6.9375,144.25,144.13,6.9425]
[1740754739219,0.04413524,144.19,144.17,0.04836867]
[1740754739625,6.9381,144.23,144.08,222.1912]
[1740754739824,0.0450737,144.19,144.17,0.05066515]
[1740754740022,20.7,144.25,144.08,222.1912]
[1740754740322,0.0447312,144.19,144.17,0.04488863]
[1740754740528,20.7,144.3,144.17,0.04488863]
[1740754740727,20.7,144.3,144.13,4.8425]
[1740754741228,20.7,144.3,144.13,9.82822033]
[1740754741727,0.04623755,144.23,144.2,0.0487151]
[1740754741918,0.04623755,144.23,144.13,4.8425]
[1740754742120,20.7,144.3,144.17,0.05261356]
[1740754742325,28.69963673,144.37,144.18,221.98]
[1740754742522,1.1988312,144.36,144.19,20.7]
[1740754742821,28.69963673,144.37,144.19,20.7]
[1740754743223,28.69963673,144.3,144.19,22.08705874]
[1740754743425,70.42691508,144.32,144.27,0.04677955]
[1740754743723,70.22271508,144.32,144.28,242.68]
[1740754743928,18.82507424,144.32,144.28,242.68]
[1740754744125,18.82507424,144.32,144.28,246.14]
[1740754744625,0.05153388,144.31,144.29,6.97912339]
[1740754744925,5.03660812,144.32,144.29,3.50442339]
[1740754745120,114.50954802,144.33,144.29,3.50442339]
[1740754745317,20.68,144.4,144.29,0.04442339]
[1740754745522,20.68,144.4,144.21,242.6]
[1740754745721,6.9328,144.34,144.23,6.9376]
[1740754745924,13.84,144.4,144.21,242.6]
[1740754746124,0.04393294,144.3,144.27,0.05147265]
[1740754746328,13.84,144.4,144.21,242.6]
[1740754746525,0.04403537,144.3,144.27,0.04490731]
[1740754746727,13.84,144.4,144.21,221.92]
[1740754746927,0.04915475,144.3,144.27,0.04631326]
[1740754747127,1.19844223,144.39,144.21,242.6]
[1740754747328,0.04500219,144.31,144.29,0.04508059]
[1740754749329,0.04500219,144.31,144.3,6.9347]
[1740754749724,0.04500219,144.31,144.3,10.3947]
[1740754750131,20.66,144.48,144.3,3.46]
[1740754750426,6.9275,144.45,144.31,221.86]
[1740754750818,20.7675,144.45,144.31,221.86]
[1740754751020,13.84,144.45,144.31,221.86]
[1740754751422,0.05305327,144.39,144.37,0.05281662]
[1740754751626,13.84,144.45,144.37,0.05281662]
[1740754751822,0.04620382,144.39,144.37,0.05281662]
[1740754752026,13.84,144.45,144.37,0.05281662]
[1740754752421,0.05324777,144.42,144.37,0.05281662]
[1740754752825,13.89324777,144.42,144.37,0.05281662]
[1740754753527,6.929,144.41,144.37,0.05281662]
[1740754753732,13.89324777,144.42,144.37,0.05281662]
[1740754756034,13.89324777,144.42,144.37,6.98331662]
[1740754756238,13.89324777,144.42,144.37,0.05281662]
[1740754756537,13.89324777,144.42,144.37,6.98341662]
[1740754756939,13.89324777,144.42,144.37,0.05281662]
[1740754757139,0.05324777,144.42,144.37,0.05281662]
[1740754757735,0.05324777,144.42,144.41,6.9287]
[1740754758033,0.05324777,144.42,144.35,20.64]
[1740754758237,0.05324777,144.42,144.4,0.0481076]
[1740754758432,0.05324777,144.42,144.35,20.64]
[1740754758833,0.05324777,144.42,144.38,6.9298]
[1740754759340,6.9301,144.38,144.37,0.05162836]
[1740754759736,20.7701,144.38,144.37,0.05162836]
[1740754760032,13.84,144.38,144.37,0.05162836]
[1740754760735,0.04772539,144.39,144.31,81.45817115]
[1740754760936,3.6886,144.38,144.29,221.76]
[1740754761337,17.5286,144.38,144.29,221.76]
[1740754761839,0.05323956,144.35,144.32,0.05170288]
[1740754762236,13.89323956,144.35,144.32,0.05170288]
[1740754763934,1.19882715,144.34,144.19,81.45817115]
[1740754764135,4.86512715,144.34,144.17,221.78]
[1740754764343,1.19882715,144.33,144.17,221.78]
[1740754764538,6.9341,144.3,144.17,228.7198]
[1740754764739,21.81882715,144.29,144.17,221.78]
[1740754764938,0.04492994,144.25,144.22,0.05040136]
[1740754765540,0.04492994,144.25,144.23,6.937]
[1740754765740,0.04492994,144.25,144.22,0.05040136]
[1740754766137,0.04492994,144.25,144.23,6.9372]
[1740754766338,0.04492994,144.25,144.22,0.05040136]
[1740754766739,3.4527,144.33,144.22,0.05040136]
[1740754766943,13.84,144.33,144.19,20.62]
[1740754767342,7.1401,144.38,144.19,20.62]
[1740754767536,20.9801,144.38,144.19,20.62]
[1740754767739,20.9801,144.38,144.29,6.934]
[1740754767940,0.04591119,144.3,144.29,6.934]
[1740754768243,20.9801,144.38,144.26,20.62]
[1740754768444,0.0489155,144.31,144.28,0.04534076]
[1740754768638,20.9801,144.38,144.21,20.62]
[1740754768836,0.05284808,144.31,144.28,0.048153]
[1740754769040,3.7179,144.37,144.21,20.62]
[1740754769240,0.04986615,144.31,144.28,0.0478235]
[1740754770345,0.04986615,144.31,144.3,6.934]
[1740754770646,0.04986615,144.31,144.28,0.0478235]
[1740754770945,0.04986615,144.31,144.3,6.934]
[1740754772350,3.6904,144.38,144.28,0.0478235]
[1740754772539,7.3709,144.44,144.28,20.6]
[1740754772841,21.2109,144.44,144.37,6.9305]
[1740754773037,21.2109,144.44,144.28,20.6]
[1740754773237,0.04403042,144.37,144.35,0.05035012]
[1740754773444,3.042e-05,144.37,144.36,6.9311]
[1740754773945,3.042e-05,144.37,144.36,10.3911]
[1740754776143,76.24897532,144.56,144.36,3.46]
[1740754776352,1.19710553,144.55,144.37,221.8]
[1740754776744,6.9233,144.53,144.37,221.8]
[1740754777046,13.84,144.53,144.37,432.25817115]
[1740754777251,0.05002467,144.46,144.44,0.04844919]
[1740754777641,11.0011,144.56,144.42,20.58]
[1740754777847,6.9221,144.55,144.46,6.9259]
[1740754778047,0.05144423,144.5,144.48,0.04984531]
[1740754778449,13.88842878,144.5,144.48,0.04984531]
[1740754778650,13.88842878,144.5,144.42,102.03817115]
[1740754778849,13.88842878,144.5,144.42,81.45817115]
[1740754779051,13.88842878,144.5,144.37,242.38]
[1740754779346,1.19745741,144.49,144.37,221.8]
[1740754779849,3.5917,144.48,144.37,221.8]
[1740754780049,0.04852555,144.44,144.42,0.04682526]
[1740754780450,13.88852555,144.44,144.42,0.04682526]
[1740754782043,13.88852555,144.44,144.37,221.8]
[1740754783246,13.88852555,144.44,144.39,0.05172666]
[1740754785348,20.81612555,144.44,144.39,0.05172666]
[1740754785549,13.88852555,144.44,144.39,0.05172666]
[1740754786351,0.04852555,144.44,144.39,0.05172666]
[1740754786655,13.88852555,144.44,144.39,0.05172666]
[1740754787554,0.04852555,144.44,144.39,0.05172666]
[1740754787756,13.88852555,144.44,144.39,0.05172666]
[1740754788855,20.81602555,144.44,144.39,0.05172666]
[1740754789357,13.88852555,144.44,144.39,0.05172666]
[1740754790758,20.54,144.43,144.3,221.72]
[1740754790952,34.38,144.43,144.3,221.72]
[1740754791757,1.1982021,144.42,144.3,221.72]
[1740754791959,0.0436816,144.38,144.35,0.04860632]
[1740754792158,0.0436816,144.38,144.37,6.9306]
[1740754792750,0.0436816,144.38,144.35,0.04860632]
[1740754793160,0.0436816,144.38,144.36,6.9308]
[1740754793558,0.0436816,144.38,144.35,0.04860632]
[1740754793860,13.8836816,144.38,144.35,0.04860632]
[1740754794458,13.8836816,144.38,144.3,221.72]
[1740754794760,6.9309,144.37,144.3,221.72]
[1740754794960,13.84,144.38,144.3,221.72]
[1740754795258,13.84,144.38,144.31,6.9332]
[1740754795458,13.84,144.38,144.3,221.72]
[1740754795655,0.05172164,144.36,144.33,0.0445614]
[1740754795861,0.05172164,144.36,144.35,6.9316]
[1740754796662,3.7596,144.41,144.33,0.0445614]
[1740754796861,13.84,144.41,144.38,6.9298]
[1740754797055,20.52,144.49,144.3,242.26]
[1740754797256,1.19756273,144.48,144.39,6.9294]
[1740754797458,1.19756273,144.48,144.3,242.26]
[1740754797652,15.03756273,144.48,144.3,242.26]
[1740754797857,0.04562175,144.4,144.39,6.9292]
[1740754798056,6.9264,144.46,144.3,242.26]
[1740754798366,0.05137776,144.41,144.38,0.04824494]
[1740754798559,20.7657,144.48,144.32,13.8659]
[1740754798761,0.04631517,144.41,144.38,0.0463109]
[1740754798957,13.84,144.48,144.32,13.8659]
[1740754799260,0.04908993,144.41,144.38,0.05184165]
[1740754799462,13.84,144.48,144.3,242.26]
[1740754799663,0.05063346,144.41,144.38,0.04722355]
[1740754799861,3.7206,144.47,144.3,242.26]
[1740754800059,0.04951788,144.41,144.38,0.04558147]
[1740754800258,20.52,144.43,144.3,221.72]
[1740754800460,7.038,144.42,144.26,38.12448765]
[1740754800660,6.9312,144.36,144.26,38.12448765]
[1740754800856,20.52,144.36,144.26,38.12448765]
[1740754801156,3.6158,144.35,144.26,38.12448765]
[1740754801558,0.04731089,144.32,144.29,0.05139253]
[1740754801958,13.88731089,144.32,144.29,0.05139253]
[1740754802160,3.50731089,144.32,144.21,9.53112191]
[1740754802366,13.84,144.32,144.21,9.53112191]
[1740754802958,13.84,144.32,144.25,6.936]
[1740754803153,13.84,144.32,144.27,0.05039359]
[1740754803362,0.04664702,144.3,144.27,0.05039359]
[1740754804766,13.88664702,144.3,144.27,0.05039359]
[1740754805259,13.88664702,144.3,144.21,9.53112191]
[1740754805467,3.588,144.29,144.16,221.74]
[1740754805660,3.588,144.29,144.18,6.9396]
[1740754805961,17.428,144.29,144.16,221.74]
[1740754806160,3.6158,144.35,144.16,221.74]
[1740754806362,1.008e-05,144.24,144.21,0.05137268]
[1740754806566,459.74976668,144.49,144.22,20.5]
[1740754806567,8.54453588,144.44,144.22,20.5]
[1740754806763,1.19813588,144.43,144.23,0.2629]
[1740754806961,21.1864,144.44,144.23,1.5367911]
[1740754807162,21.1864,144.44,144.24,2.66028196]
[1740754807364,21.1864,144.44,144.24,1.38657792]
[1740754807565,1.19799142,144.43,144.23,20.7629]
[1740754807866,0.05000197,144.35,144.33,0.04423786]
[1740754808063,7.3464,144.44,144.33,0.04423786]
[1740754808268,21.1864,144.44,144.31,221.78]
[1740754808766,21.1864,144.44,144.38,6.9301]
[1740754808966,21.1864,144.44,144.31,221.78]
[1740754809168,0.05155651,144.42,144.4,0.0520279]
[1740754809667,21.1864,144.44,144.31,221.78]
[1740754809868,0.05098359,144.42,144.4,0.05244764]
[1740754810261,6.9237,144.52,144.32,0.2105]
[1740754810464,0.04841975,144.42,144.4,0.05291256]
[1740754810761,1.19731966,144.5,144.33,20.48]
[1740754810961,0.05003694,144.42,144.4,0.05187625]
[1740754811167,0.05003694,144.42,144.31,221.78]
[1740754811366,13.84,144.42,144.31,228.7134]
[1740754811566,3.6846,144.41,144.31,221.78]
[1740754811962,17.5246,144.41,144.31,221.78]
[1740754812264,0.0485546,144.37,144.35,0.04969273]
[1740754812469,0.0485546,144.37,144.29,9.53112191]
[1740754812669,13.8885546,144.37,144.28,28.59336574]
[1740754812868,4.64377052,144.36,144.28,11.53776574]
[1740754813172,1.19837052,144.35,144.27,62.40897532]
[1740754813365,1.19837052,144.35,144.27,56.72437532]
[1740754813561,0.04432146,144.32,144.27,56.72437532]
[1740754813860,20.52432146,144.32,144.27,56.72437532]
[1740754814067,1.19837052,144.31,144.27,32.68787532]
[1740754814265,23.98432146,144.32,144.27,32.68787532]
[1740754814463,1.19917842,144.31,144.27,32.68787532]
[1740754814666,6.9354,144.27,144.26,88.81793172]
[1740754814865,1.19917842,144.27,144.26,88.81793172]
[1740754815064,3.46,144.27,144.26,81.87793172]
[1740754815266,6.9359,144.26,144.25,100.09974987]
[1740754815465,8.13507842,144.26,144.25,7.06e-06]
[1740754815771,1.19917842,144.26,144.25,7.06e-06]
[1740754816171,0.05015282,144.28,144.25,7.06e-06]
[1740754816374,1.24933124,144.28,144.25,7.06e-06]
[1740754816574,3.51015282,144.28,144.25,7.06e-06]
[1740754816770,8.13467842,144.27,144.25,7.06e-06]
[1740754817075,1.19917842,144.26,144.25,7.06e-06]
[1740754817271,1.19917842,144.27,144.25,7.06e-06]
[1740754817469,1.19917842,144.26,144.25,7.06e-06]
[1740754817676,1.19917842,144.27,144.25,7.06e-06]
[1740754817876,1.1996673,144.26,144.25,7.06e-06]
[1740754818082,1.1996673,144.27,144.25,7.06e-06]
[1740754818272,1.1996673,144.26,144.25,7.06e-06]
[1740754818680,3.46,144.26,144.25,7.06e-06]
[1740754818974,263.18013466,144.26,144.25,7.06e-06]
[1740754819168,263.18013466,144.26,144.07,10.7326]
[1740754819371,21.6796673,144.25,144.13,13.86003687]
[1740754819767,1.1996673,144.24,144.14,13.86003687]
[1740754819972,1.1996673,144.24,144.11,13.86003687]
[1740754820372,0.05229984,144.19,144.16,0.04483546]
[1740754820671,20.48,144.18,144.16,0.04483546]
[1740754820875,1.1996673,144.17,144.16,0.04483546]
[1740754821070,20.48,144.18,144.16,0.04483546]
[1740754821269,1.2003759,144.17,143.92,10.9637]
[1740754821472,2.58762706,144.17,144.11,13.86003687]
[1740754821774,1.2003759,144.16,144.1,13.86003687]
[1740754822076,1.2003759,144.16,144.05,6.9459]
[1740754822278,1.2003759,144.16,144.08,13.86003687]
[1740754822478,0.04463774,144.12,144.09,0.04806238]
[1740754822679,20.48,144.11,144.09,0.04806238]
[1740754822873,20.48,144.11,143.97,221.94]
[1740754823073,20.53086656,144.11,144.09,0.04478012]
[1740754823270,1.20060565,144.1,143.84,242.52]
[1740754823477,1.20060565,144.1,144.02,13.86003687]
[1740754823882,1.20060565,144.1,144.04,13.86003687]
[1740754824069,1.20060565,144.1,143.95,222.04]
[1740754824275,20.48,144.15,144.09,98.63275268]
[1740754824476,20.48,144.15,144.11,13.80611609]
[1740754824675,0.04599778,144.13,144.11,13.80611609]
[1740754824979,0.04599778,144.13,144.12,13.82805043]
[1740754825180,21.91795184,144.17,144.12,98.63275268]
[1740754825375,21.91795184,144.17,144.06,20.48]